fUSD/lending_fUSD_20240913
["ID","MTS","AMOUNT","RATE_DAILY","PERIOD"]
[338019954,1726240238752,-562.379,0.00013374,2]
[338019955,1726240238762,-252.472,0.00013374,2]
[338019957,1726240238771,-1925.0,0.00013374,2]
[338019959,1726240238779,-807.0,0.00013374,2]
[338019961,1726240238788,-3343.0,0.00013374,2]
[338019963,1726240238798,-1119.0,0.00013374,2]
[338019965,1726240238806,-160.0,0.00013376,2]
[338019967,1726240238815,-2000.0,0.00013394,2]
[338019968,1726240238824,-200.0,0.00013394,2]
[338019970,1726240238833,-3176.23,0.00013425,2]
[338019972,1726240238843,-281.78404726,0.00013471,2]
[338019974,1726240238852,-200.0,0.00013528,2]
[338019976,1726240238860,-150.0,0.00013533,2]
[338019978,1726240238870,-6879.90472468,0.00013549,2]
[338019980,1726240238879,-796.0,0.00013582,2]
[338019982,1726240238887,-206.4631329,0.00013582,2]
[338019983,1726240238897,-796.0,0.00013582,2]
[338019985,1726240238906,-796.0,0.00013582,2]
[338019987,1726240238916,-1000.0,0.0001359,2]
[338019989,1726240238925,-1462.0,0.000136,2]
[338019991,1726240238935,-167.0,0.00013631,2]
[338019993,1726240238944,-150.0,0.00013692,2]
[338019995,1726240238954,-1042.57,0.00013698,2]
[338019997,1726240238963,-1042.57,0.00013698,2]
[338019999,1726240238973,-1042.57,0.00013698,2]
[338020001,1726240238981,-1042.57,0.00013698,2]
[338020003,1726240238990,-1042.57,0.00013698,2]
[338020005,1726240239000,-1042.57,0.00013698,2]
[338020007,1726240239012,-1042.57,0.00013698,2]
[338020009,1726240239022,-1042.57,0.00013698,2]
[338020011,1726240239031,-1042.57,0.00013698,2]
[338020013,1726240239040,-1042.57,0.00013698,2]
[338020015,1726240239050,-1042.57,0.00013698,2]
[338020017,1726240239059,-1042.57,0.00013698,2]
[338020019,1726240239068,-1042.57,0.00013698,2]
[338020021,1726240239077,-1042.57,0.00013698,2]
[338020023,1726240239087,-1042.57,0.00013698,2]
[338020025,1726240239096,-1042.57,0.00013698,2]
[338020027,1726240239105,-1042.57,0.00013698,2]
[338020029,1726240239115,-1042.57,0.00013698,2]
[338020031,1726240239124,-1042.57,0.00013698,2]
[338020033,1726240239132,-1042.57,0.00013698,2]
[338020035,1726240239142,-1042.57,0.00013698,2]
[338020037,1726240239151,-1042.57,0.00013698,2]
[338020039,1726240239160,-1042.57,0.00013698,2]
[338020041,1726240239169,-1042.62450887,0.00013698,2]
[338020043,1726240239178,-1000.0,0.00013699,2]
[338020045,1726240239187,-1000.0,0.00013699,2]
[338020047,1726240239196,-1000.0,0.00013699,2]
[338020049,1726240239205,-1000.0,0.00013699,2]
[338020051,1726240239214,-1000.0,0.00013699,2]
[338020052,1726240239223,-1000.0,0.00013699,2]
[338020054,1726240239232,-1000.0,0.00013699,2]
[338020056,1726240239241,-1000.0,0.00013699,2]
[338020058,1726240239251,-1000.0,0.00013699,2]
[338020060,1726240239263,-1000.0,0.00013699,2]
[338020062,1726240239278,-1000.0,0.00013699,2]
[338020064,1726240239288,-1000.0,0.00013699,2]
[338020066,1726240239297,-1000.0,0.00013699,2]
[338020068,1726240239306,-1000.0,0.00013699,2]
[338020070,1726240239315,-1000.0,0.00013699,2]
[338020072,1726240239324,-677.0,0.00013699,2]
[338020074,1726240239333,-160.12,0.00013699,2]
[338020076,1726240239343,-174.28,0.00013699,2]
[338020078,1726240239352,-500.0,0.00013699,2]
[338020080,1726240239361,-2751.0,0.00013699,2]
[338020082,1726240239371,-3211.01,0.00013699,2]
[338020084,1726240239380,-2806.77,0.00013699,2]
[338020086,1726240239390,-200.0,0.00013699,2]
[338020088,1726240239400,-2500.0,0.000137,2]
[338020090,1726240239409,-151.03303605,0.000137,2]
[338020091,1726240239418,-1000.0,0.000137,2]
[338020093,1726240239428,-150.0,0.00013708,2]
[338020095,1726240239437,-150.0,0.0001372,2]
[338020097,1726240239447,-150.0,0.0001373,2]
[338020099,1726240239456,-150.0,0.00013737,2]
[338020101,1726240239466,-150.0,0.00013738,2]
[338020103,1726240239475,-150.0,0.00013738,2]
[338020105,1726240239486,-150.0,0.00013742,2]
[338020107,1726240239495,-150.0,0.00013755,2]
[338020109,1726240239507,-150.0,0.00013755,2]
[338020111,1726240239517,-150.0,0.00013757,2]
[338020113,1726240239527,-281.78404726,0.00013757,2]
[338020115,1726240239537,-150.0,0.0001376,2]
[338020117,1726240239547,-150.0,0.00013761,2]
[338020119,1726240239557,-150.0,0.00013764,2]
[338020121,1726240239567,-150.14,0.00013771,2]
[338020123,1726240239578,-487.03368496,0.00013772,2]
[338020125,1726240239587,-500.0,0.00013773,2]
[338020127,1726240239598,-179.90170508,0.00013773,2]
[338020129,1726240239607,-500.19201346,0.00013773,2]
[338020131,1726240239617,-500.0,0.00013773,2]
[338020132,1726240239626,-156.31906677,0.00013773,2]
[338020134,1726240239636,-500.0,0.00013773,2]
[338020136,1726240239646,-160.20764963,0.00013773,2]
[338020138,1726240239655,-500.13131302,0.00013773,2]
[338020140,1726240239664,-500.0,0.00013773,2]
[338020142,1726240239673,-203.35670709,0.00013773,2]
[338020144,1726240239682,-150.0,0.00013773,2]
[338020146,1726240239692,-6879.90472468,0.00013774,2]
[338020148,1726240239701,-150.0,0.0001378,2]
[338020150,1726240239711,-306764.0,0.00013781,2]
[338020152,1726240239722,-9657.0,0.00013781,2]
[338020154,1726240239731,-150.0,0.00013788,2]
[338020157,1726240239741,-84524.42854422,0.0001379,2]
[338020159,1726240239751,-150.0,0.0001379,2]
[338020161,1726240239765,-150.0,0.00013796,2]
[338020163,1726240239775,-150.0,0.000138,2]
[338020165,1726240239784,-224639.485946,0.000138,3]
[338020167,1726240239796,-150.0,0.0001381,2]
[338020169,1726240239805,-150.0,0.00013826,2]
[338020171,1726240239815,-150.0,0.00013843,2]
[338020173,1726240239826,-150.0,0.00013854,2]
[338020176,1726240239835,-150.0,0.00013855,2]
[338020178,1726240239845,-150.0,0.00013864,2]
[338020180,1726240239855,-150.0,0.00013869,2]
[338020182,1726240239864,-150.0,0.0001387,2]
[338020184,1726240239873,-150.0,0.0001387,2]
[338020186,1726240239883,-150.0,0.00013871,2]
[338020188,1726240239892,-150.0,0.00013883,2]
[338020190,1726240239901,-150.0,0.00013884,2]
[338020192,1726240239911,-255.0,0.00013899,2]
[338020193,1726240239921,-15563.3024417,0.000139,3]
[338020195,1726240239931,-1275.48443242,0.000139,2]
[338020197,1726240239941,-150.0,0.00013903,2]
[338020199,1726240239950,-500.0,0.00013904,2]
[338020201,1726240239960,-500.0,0.00013904,2]
[338020203,1726240239970,-500.0,0.00013904,2]
[338020205,1726240239979,-150.0,0.00013911,2]
[338020207,1726240239989,-150.0,0.00013917,2]
[338020209,1726240239998,-150.0,0.00013917,2]
[338020211,1726240240009,-150.0,0.00013923,2]
[338020213,1726240240018,-150.0,0.00013923,2]
[338020215,1726240240027,-150.0,0.00013926,2]
[338020216,1726240240038,-150.0,0.0001393,2]
[338020217,1726240240048,-150.0,0.00013945,2]
[338020218,1726240240058,-150.0,0.00013951,2]
[338020219,1726240240068,-150.0,0.00013959,2]
[338020220,1726240240078,-312.813757,0.00013973,2]
[338020221,1726240240088,-150.01,0.0001398,2]
[338020222,1726240240099,-1867.61164062,0.0001398,2]
[338020223,1726240240110,-6879.90472468,0.00013999,2]
[338020224,1726240240120,-150.0,0.00014,2]
[338020225,1726240240131,-55784.78677421,0.00014,6]
[338020238,1726240240330,-150.00000001,0.00014,2]
[338020240,1726240240341,-281.78404726,0.00014043,2]
[338020242,1726240240351,-151.03303605,0.000141,2]
[338020244,1726240240360,-5024.36767,0.00014129,2]
[338020246,1726240240370,-357.17,0.00014192,2]
[338020247,1726240240379,-806.35,0.00014192,2]
[338020248,1726240240389,-152.0,0.00014192,4]
[338020250,1726240240398,-6879.90472468,0.00014224,2]
[338020252,1726240240408,-203.0,0.0001426,2]
[338020256,1726240240417,-796.0,0.00014262,2]
[338020258,1726240240427,-796.0,0.00014262,2]
[338020261,1726240240436,-796.0,0.00014262,2]
[338020264,1726240240445,-796.0,0.00014262,2]
[338020267,1726240240455,-160.0,0.00014322,2]
[338020269,1726240240464,-281.78404726,0.00014329,2]
[338020272,1726240240474,-167.0,0.00014381,2]
[338020275,1726240240483,-150.14,0.0001439,2]
[338020277,1726240240496,-81500.0,0.000144,2]
[338020279,1726240240506,-203.0,0.0001444,2]
[338020281,1726240240519,-6879.90472468,0.0001445,2]
[338020283,1726240240529,-528.0,0.000145,14]
[338020285,1726240240538,-4428.0,0.000145,2]
[338020287,1726240240547,-151.03303605,0.000145,2]
[338020289,1726240240556,-203.0,0.0001451,2]
[338020291,1726240240565,-212.0,0.0001451,2]
[338020293,1726240240574,-500.0,0.00014521,2]
[338020295,1726240240584,-1839.54646787,0.000146,2]
[338020297,1726240240593,-1999.99999999,0.000146,2]
[338020299,1726240240602,-2000.0,0.000146,2]
[338020301,1726240240612,-2000.0,0.000146,2]
[338020303,1726240240622,-2000.0,0.000146,2]
[338020305,1726240240631,-160.12,0.00014612,2]
[338020307,1726240240640,-281.78404726,0.00014614,2]
[338020309,1726240240650,-203.0,0.0001463,2]
[338020311,1726240240659,-500.0,0.00014661,2]
[338020313,1726240240668,-203.0,0.0001467,2]
[338020315,1726240240678,-212.0,0.0001467,2]
[338020317,1726240240687,-203.0,0.0001467,2]
[338020319,1726240240696,-212.0,0.0001467,2]
[338020321,1726240240705,-500.0,0.0001467,2]
[338020323,1726240240714,-6879.90472468,0.00014675,2]
[338020325,1726240240723,-500.0,0.00014679,2]
[338020327,1726240240732,-41149.5570314,0.00014679,2]
[338020329,1726240240741,-500.0,0.00014688,2]
[338020331,1726240240750,-320.0212,0.00014694,2]
[338020333,1726240240761,-500.0,0.00014696,2]
[338020334,1726240240770,-1000.0,0.000147,2]
[338020336,1726240240779,-1000.0,0.000147,2]
[338020338,1726240240788,-1000.0,0.000147,2]
[338020340,1726240240797,-1000.0,0.000147,2]
[338020342,1726240240806,-1000.0,0.000147,2]
[338020344,1726240240816,-1181.997,0.000147,2]
[338020346,1726240240825,-500.0,0.00014705,2]
[338020348,1726240240834,-21111.20554648,0.00014707,2]
[338020350,1726240240844,-500.0,0.00014714,2]
[338020352,1726240240853,-500.0,0.00014723,2]
[338020354,1726240240863,-622.98,0.0001473,2]
[338020356,1726240240874,-500.0,0.00014732,2]
[338020359,1726240240884,-500.0,0.0001474,2]
[338020360,1726240240893,-500.0,0.00014749,2]
[338020363,1726240240903,-500.0,0.00014758,2]
[338020365,1726240240913,-500.0,0.00014767,2]
[338020367,1726240240922,-500.0,0.00014776,2]
[338020369,1726240240932,-5750.19128277,0.0001478,2]
[338020370,1726240240941,-8500.0,0.00014784,2]
[338020373,1726240240951,-500.0,0.00014784,2]
[338020375,1726240240960,-8500.0,0.00014792,2]
[338020377,1726240240970,-500.0,0.00014793,2]
[338020379,1726240240979,-500.0,0.00014794,2]
[338020381,1726240240989,-500.0,0.00014794,2]
[338020383,1726240240999,-500.0,0.00014794,2]
[338020385,1726240241012,-501.0,0.00014794,2]
[338020387,1726240241022,-500.0,0.00014794,2]
[338020389,1726240241033,-500.0,0.00014794,2]
[338020391,1726240241042,-500.0,0.00014794,2]
[338020393,1726240241053,-500.0,0.00014794,2]
[338020395,1726240241065,-500.0,0.00014794,2]
[338020398,1726240241075,-500.0,0.00014794,2]
[338020400,1726240241086,-500.0,0.00014794,2]
[338020402,1726240241096,-500.0,0.00014794,2]
[338020404,1726240241105,-500.0,0.00014794,2]
[338020406,1726240241114,-500.0,0.00014794,2]
[338020408,1726240241123,-500.0,0.00014794,2]
[338020410,1726240241132,-500.0,0.00014794,2]
[338020412,1726240241142,-500.0,0.00014794,2]
[338020414,1726240241151,-151.0,0.00014794,2]
[338020416,1726240241160,-500.0,0.00014794,2]
[338020417,1726240241169,-500.0,0.00014794,2]
[338020419,1726240241178,-500.0,0.00014794,2]
[338020421,1726240241187,-500.0,0.00014794,2]
[338020423,1726240241197,-500.0,0.00014794,2]
[338020425,1726240241207,-500.0,0.00014794,2]
[338020428,1726240241218,-500.0,0.00014794,2]
[338020430,1726240241228,-500.0,0.00014794,2]
[338020432,1726240241237,-500.0,0.00014794,2]
[338020434,1726240241247,-500.0,0.00014794,2]
[338020436,1726240241257,-500.0,0.00014794,2]
[338020438,1726240241267,-383.29190246,0.00014794,2]
[338020440,1726240241276,-151.0,0.00014794,2]
[338020442,1726240241286,-151.0,0.00014794,2]
[338020444,1726240241295,-151.0,0.00014794,2]
[338020445,1726240241304,-151.0,0.00014794,2]
[338020447,1726240241313,-151.0,0.00014794,2]
[338020449,1726240241323,-500.0,0.00014794,2]
[338020451,1726240241332,-500.0,0.00014794,2]
[338020453,1726240241341,-237.27002606,0.00014794,2]
[338020456,1726240241351,-500.0,0.00014794,2]
[338020457,1726240241361,-500.0,0.00014794,2]
[338020459,1726240241370,-500.0,0.00014794,2]
[338020461,1726240241379,-500.0,0.00014794,2]
[338020463,1726240241388,-500.0,0.00014794,2]
[338020465,1726240241397,-500.0,0.00014794,2]
[338020467,1726240241406,-500.0,0.00014794,2]
[338020469,1726240241415,-500.0,0.00014794,2]
[338020471,1726240241425,-500.0,0.00014794,2]
[338020473,1726240241434,-500.0,0.00014794,2]
[338020475,1726240241443,-500.0,0.00014794,2]
[338020477,1726240241452,-500.0,0.00014794,2]
[338020479,1726240241462,-500.0,0.00014794,2]
[338020481,1726240241471,-500.0,0.00014794,2]
[338020483,1726240241479,-151.0,0.00014794,2]
[338020485,1726240241489,-151.0,0.00014794,2]
[338020487,1726240241498,-500.0,0.00014794,2]
[338020489,1726240241508,-497.42232229,0.00014794,2]
[338020491,1726240241518,-151.0,0.00014794,2]
[338020493,1726240241529,-151.0,0.00014794,2]
[338020495,1726240241538,-151.0,0.00014794,2]
[338020497,1726240241547,-151.0,0.00014794,2]
[338020499,1726240241557,-151.0,0.00014794,2]
[338020501,1726240241567,-151.0,0.00014794,2]
[338020503,1726240241576,-334.26547108,0.00014794,2]
[338020505,1726240241585,-500.0,0.00014794,2]
[338020507,1726240241595,-500.0,0.00014794,2]
[338020508,1726240241605,-500.0,0.00014794,2]
[338020510,1726240241614,-500.0,0.00014794,2]
[338020512,1726240241624,-500.0,0.00014794,2]
[338020514,1726240241633,-500.0,0.00014794,2]
[338020516,1726240241642,-500.0,0.00014794,2]
[338020518,1726240241652,-500.0,0.00014794,2]
[338020520,1726240241662,-500.0,0.00014794,2]
[338020522,1726240241671,-500.0,0.00014794,2]
[338020524,1726240241680,-500.0,0.00014794,2]
[338020526,1726240241689,-500.0,0.00014794,2]
[338020528,1726240241698,-500.0,0.00014794,2]
[338020530,1726240241707,-500.0,0.00014794,2]
[338020531,1726240241716,-500.0,0.00014794,2]
[338020533,1726240241725,-500.0,0.00014794,2]
[338020535,1726240241735,-500.0,0.00014794,2]
[338020537,1726240241744,-500.0,0.00014794,2]
[338020539,1726240241754,-587.32416218,0.00014794,2]
[338020541,1726240241764,-500.0,0.00014794,2]
[338020543,1726240241773,-500.0,0.00014794,2]
[338020545,1726240241782,-500.0,0.00014794,2]
[338020547,1726240241791,-514.35,0.00014794,2]
[338020549,1726240241802,-486.40543206,0.00014794,2]
[338020550,1726240241811,-151.0,0.00014794,2]
[338020552,1726240241820,-151.0,0.00014794,2]
[338020554,1726240241829,-151.0,0.00014794,2]
[338020556,1726240241838,-500.0,0.00014794,2]
[338020557,1726240241848,-162.11125328,0.00014794,2]
[338020559,1726240241858,-152.465237,0.00014794,2]
[338020561,1726240241867,-151.0,0.00014794,2]
[338020563,1726240241876,-357.87785712,0.00014794,2]
[338020565,1726240241884,-500.0,0.00014794,2]
[338020566,1726240241894,-500.0,0.00014794,2]
[338020568,1726240241904,-500.0,0.00014794,2]
[338020570,1726240241913,-500.0,0.00014794,2]
[338020572,1726240241923,-500.0,0.00014794,2]
[338020574,1726240241933,-151.0,0.00014794,2]
[338020575,1726240241943,-151.0,0.00014794,2]
[338020577,1726240241953,-500.0,0.00014794,2]
[338020579,1726240241962,-500.0,0.00014794,2]
[338020581,1726240241972,-638.76609045,0.00014794,2]
[338020582,1726240241983,-500.0,0.00014794,2]
[338020584,1726240241993,-500.0,0.00014794,2]
[338020586,1726240242003,-500.0,0.00014794,2]
[338020588,1726240242013,-500.0,0.00014794,2]
[338020590,1726240242022,-500.0,0.00014794,2]
[338020591,1726240242031,-500.0,0.00014794,2]
[338020593,1726240242040,-500.0,0.00014794,2]
[338020595,1726240242049,-500.0,0.00014794,2]
[338020597,1726240242059,-500.0,0.00014794,2]
[338020599,1726240242069,-500.0,0.00014794,2]
[338020600,1726240242079,-438.35298653,0.00014794,2]
[338020602,1726240242088,-500.0,0.00014794,2]
[338020604,1726240242098,-500.0,0.00014794,2]
[338020606,1726240242107,-500.0,0.00014794,2]
[338020608,1726240242116,-500.0,0.00014794,2]
[338020609,1726240242125,-500.0,0.00014794,2]
[338020611,1726240242134,-500.0,0.00014794,2]
[338020613,1726240242143,-498.71584154,0.00014794,2]
[338020615,1726240242153,-500.0,0.00014794,2]
[338020617,1726240242163,-500.0,0.00014794,2]
[338020618,1726240242172,-500.0,0.00014794,2]
[338020620,1726240242181,-500.0,0.00014794,2]
[338020622,1726240242190,-500.0,0.00014794,2]
[338020623,1726240242199,-500.0,0.00014794,2]
[338020625,1726240242208,-500.0,0.00014794,2]
[338020627,1726240242217,-500.0,0.00014794,2]
[338020629,1726240242226,-500.0,0.00014794,2]
[338020630,1726240242235,-469.56018758,0.00014794,2]
[338020632,1726240242244,-151.0,0.00014794,2]
[338020634,1726240242253,-151.0,0.00014794,2]
[338020636,1726240242263,-151.0,0.00014794,2]
[338020637,1726240242272,-500.0,0.00014794,2]
[338020639,1726240242282,-500.0,0.00014794,2]
[338020641,1726240242291,-500.0,0.00014794,2]
[338020643,1726240242300,-500.0,0.00014794,2]
[338020645,1726240242309,-500.0,0.00014794,2]
[338020647,1726240242319,-500.0,0.00014794,2]
[338020648,1726240242328,-500.0,0.00014794,2]
[338020650,1726240242337,-500.0,0.00014794,2]
[338020652,1726240242347,-500.0,0.00014794,2]
[338020654,1726240242356,-500.0,0.00014794,2]
[338020656,1726240242366,-500.0,0.00014794,2]
[338020657,1726240242375,-500.0,0.00014794,2]
[338020659,1726240242385,-500.0,0.00014794,2]
[338020661,1726240242395,-500.0,0.00014794,2]
[338020663,1726240242404,-500.0,0.00014794,2]
[338020665,1726240242413,-493.57,0.00014794,2]
[338020667,1726240242422,-500.0,0.00014794,2]
[338020668,1726240242431,-500.0,0.00014794,2]
[338020670,1726240242440,-500.0,0.00014794,2]
[338020672,1726240242449,-500.0,0.00014794,2]
[338020674,1726240242458,-500.0,0.00014794,2]
[338020676,1726240242468,-500.0,0.00014794,2]
[338020678,1726240242477,-500.0,0.00014794,2]
[338020680,1726240242486,-500.0,0.00014794,2]
[338020681,1726240242495,-500.0,0.00014794,2]
[338020683,1726240242505,-500.0,0.00014794,2]
[338020685,1726240242519,-500.0,0.00014794,2]
[338020687,1726240242528,-500.0,0.00014794,2]
[338020689,1726240242538,-296.26833628,0.00014794,2]
[338020691,1726240242549,-500.0,0.00014794,2]
[338020693,1726240242558,-446.8,0.00014794,2]
[338020695,1726240242568,-328.47430396,0.00014794,2]
[338020697,1726240242578,-363.37236,0.00014794,2]
[338020699,1726240242587,-363.37236,0.00014794,2]
[338020701,1726240242597,-151.0,0.00014794,2]
[338020703,1726240242606,-500.0,0.00014794,2]
[338020704,1726240242615,-500.0,0.00014794,2]
[338020706,1726240242625,-500.0,0.00014794,2]
[338020708,1726240242634,-500.0,0.00014794,2]
[338020710,1726240242644,-500.0,0.00014794,2]
[338020712,1726240242654,-500.0,0.00014794,2]
[338020714,1726240242663,-500.0,0.00014794,2]
[338020716,1726240242672,-500.0,0.00014794,2]
[338020718,1726240242681,-500.0,0.00014794,2]
[338020719,1726240242690,-500.0,0.00014794,2]
[338020721,1726240242699,-500.0,0.00014794,2]
[338020723,1726240242708,-421.82772951,0.00014794,2]
[338020725,1726240242718,-500.0,0.00014794,2]
[338020727,1726240242727,-500.0,0.00014794,2]
[338020729,1726240242737,-500.0,0.00014794,2]
[338020731,1726240242746,-500.0,0.00014794,2]
[338020732,1726240242755,-500.0,0.00014794,2]
[338020734,1726240242766,-500.0,0.00014794,2]
[338020736,1726240242775,-500.0,0.00014794,2]
[338020738,1726240242784,-500.0,0.00014794,2]
[338020740,1726240242793,-500.0,0.00014794,2]
[338020742,1726240242802,-500.0,0.00014794,2]
[338020744,1726240242811,-500.0,0.00014794,2]
[338020745,1726240242821,-500.0,0.00014794,2]
[338020747,1726240242830,-500.0,0.00014794,2]
[338020749,1726240242839,-500.0,0.00014794,2]
[338020751,1726240242848,-500.0,0.00014794,2]
[338020753,1726240242857,-500.0,0.00014794,2]
[338020755,1726240242866,-500.0,0.00014794,2]
[338020757,1726240242875,-500.0,0.00014794,2]
[338020758,1726240242884,-500.0,0.00014794,2]
[338020760,1726240242892,-289.57899644,0.00014794,2]
[338020762,1726240242901,-151.0,0.00014794,2]
[338020764,1726240242910,-500.0,0.00014794,2]
[338020766,1726240242919,-333.49705727,0.00014794,2]
[338020768,1726240242929,-165.171592,0.00014794,2]
[338020769,1726240242938,-500.0,0.00014794,2]
[338020771,1726240242947,-500.0,0.00014794,2]
[338020773,1726240242957,-500.0,0.00014794,2]
[338020775,1726240242967,-500.0,0.00014794,2]
[338020777,1726240242976,-500.0,0.00014794,2]
[338020779,1726240242985,-500.0,0.00014794,2]
[338020780,1726240242994,-500.0,0.00014794,2]
[338020782,1726240243003,-500.0,0.00014794,2]
[338020784,1726240243014,-500.0,0.00014794,2]
[338020786,1726240243023,-500.0,0.00014794,2]
[338020787,1726240243032,-500.0,0.00014794,2]
[338020789,1726240243042,-500.0,0.00014794,2]
[338020791,1726240243053,-500.0,0.00014794,2]
[338020793,1726240243062,-500.0,0.00014794,2]
[338020795,1726240243072,-492.69488011,0.00014794,2]
[338020797,1726240243081,-500.0,0.00014794,2]
[338020799,1726240243090,-513.70619221,0.00014794,2]
[338020800,1726240243101,-151.0,0.00014794,2]
[338020802,1726240243112,-500.0,0.00014794,2]
[338020805,1726240243122,-500.0,0.00014794,2]
[338020807,1726240243131,-178.43223613,0.00014794,2]
[338020810,1726240243140,-500.0,0.00014794,2]
[338020813,1726240243149,-500.0,0.00014794,2]
[338020817,1726240243159,-3555.11,0.00014794,2]
[338020819,1726240243168,-500.0,0.00014794,2]
[338020821,1726240243178,-3555.11,0.00014794,2]
[338020823,1726240243188,-500.0,0.00014794,2]
[338020826,1726240243200,-3555.11,0.00014794,2]
[338020827,1726240243209,-500.0,0.00014794,2]
[338020830,1726240243218,-3555.11,0.00014794,2]
[338020833,1726240243227,-500.0,0.00014794,2]
[338020836,1726240243237,-3555.11,0.00014794,2]
[338020838,1726240243246,-3555.11,0.00014794,2]
[338020840,1726240243255,-500.0,0.00014794,2]
[338020842,1726240243267,-3555.11,0.00014794,2]
[338020844,1726240243276,-500.0,0.00014794,2]
[338020846,1726240243286,-3555.11,0.00014794,2]
[338020848,1726240243294,-500.0,0.00014794,2]
[338020850,1726240243303,-3555.11,0.00014794,2]
[338020851,1726240243313,-3555.11,0.00014794,2]
[338020853,1726240243322,-3555.11,0.00014794,2]
[338020855,1726240243331,-3555.11,0.00014794,2]
[338020857,1726240243341,-3555.11,0.00014794,2]
[338020858,1726240243350,-3555.11,0.00014794,2]
[338020860,1726240243360,-3555.11,0.00014794,2]
[338020862,1726240243369,-3555.11,0.00014794,2]
[338020864,1726240243379,-3555.11,0.00014794,2]
[338020866,1726240243388,-3555.11,0.00014794,2]
[338020867,1726240243397,-500.0,0.00014794,2]
[338020869,1726240243406,-500.0,0.00014794,2]
[338020871,1726240243415,-3555.11,0.00014794,2]
[338020873,1726240243425,-174.24646729,0.00014794,2]
[338020875,1726240243434,-500.0,0.00014794,2]
[338020876,1726240243443,-500.0,0.00014794,2]
[338020878,1726240243453,-500.0,0.00014794,2]
[338020880,1726240243462,-500.0,0.00014794,2]
[338020882,1726240243471,-500.0,0.00014794,2]
[338020884,1726240243481,-500.0,0.00014794,2]
[338020885,1726240243493,-500.0,0.00014794,2]
[338020887,1726240243502,-500.0,0.00014794,2]
[338020889,1726240243513,-500.0,0.00014794,2]
[338020891,1726240243526,-500.0,0.00014794,2]
[338020893,1726240243536,-500.0,0.00014794,2]
[338020894,1726240243545,-500.0,0.00014794,2]
[338020896,1726240243554,-500.0,0.00014794,2]
[338020898,1726240243563,-539.775548,0.00014794,2]
[338020899,1726240243573,-151.0,0.00014794,2]
[338020901,1726240243586,-151.0,0.00014794,2]
[338020903,1726240243595,-500.0,0.00014794,2]
[338020905,1726240243605,-500.0,0.00014794,2]
[338020906,1726240243614,-500.0,0.00014794,2]
[338020907,1726240243623,-500.0,0.00014794,2]
[338020908,1726240243633,-500.0,0.00014794,2]
[338020909,1726240243642,-500.0,0.00014794,2]
[338020910,1726240243651,-500.0,0.00014794,2]
[338020911,1726240243660,-500.0,0.00014794,2]
[338020912,1726240243670,-328.83912319,0.00014794,2]
[338020913,1726240243680,-500.0,0.00014794,2]
[338020914,1726240243689,-500.0,0.00014794,2]
[338020915,1726240243699,-404.29466045,0.00014794,2]
[338020916,1726240243708,-500.0,0.00014794,2]